[Event "Titled Tuesday Blitz May 17 Late 2022"]
[White "Amburgy, Ryan"]
[Black "Moral Garcia, Serafin"]
[WhiteFideId "30924820"]
[BlackFideId "2201925"]
[WhiteElo "2066"]
[BlackElo "2228"]
[Result "0-1"]
[Round "09"]
[TimeControl "180+1"]
[Date "2022.05.17"]
[WhiteClock "0:00:06"]
[BlackClock "0:00:20"]

1. Nf3 {[%clk 0:03:00]}  Nf6 {[%clk 0:02:56]} 2. c4 {[%clk 0:03:01]}  g6 {[%clk 0:02:56]} 3. Nc3 {[%clk 0:03:01]}  d5 {[%clk 0:02:56]} 4. cxd5 {[%clk 0:03:02]}  Nxd5 {[%clk 0:02:56]} 5. h4 {[%clk 0:03:03]}  Bg7 {[%clk 0:02:49]} 6. h5 {[%clk 0:03:02]}  c5 {[%clk 0:02:49]} 7. h6 {[%clk 0:02:55]}  Bf6 {[%clk 0:02:48]} 8. g3 {[%clk 0:02:56]}  Nc6 {[%clk 0:02:44]} 9. Bg2 {[%clk 0:02:55]}  O-O {[%clk 0:02:37]} 10. O-O {[%clk 0:02:37]}  b6 {[%clk 0:02:22]} 11. Qb3 {[%clk 0:02:12]}  Be6 {[%clk 0:02:19]} 12. Ne4 {[%clk 0:02:06]}  Nf4 {[%clk 0:02:06]} 13. Nxf6+ {[%clk 0:02:06]}  exf6 {[%clk 0:02:07]} 14. Qb5 {[%clk 0:02:00]}  Nxg2 {[%clk 0:01:26]} 15. Kxg2 {[%clk 0:02:01]}  Qd5 {[%clk 0:01:19]} 16. b3 {[%clk 0:01:21]}  Nd4 {[%clk 0:01:13]} 17. Qd3 {[%clk 0:01:21]}  Bf5 {[%clk 0:01:12]} 18. Qc3 {[%clk 0:01:10]}  Be4 {[%clk 0:00:56]} 19. Re1 {[%clk 0:00:49]}  Rfe8 {[%clk 0:00:52]} 20. Bb2 {[%clk 0:00:36]}  Re6 {[%clk 0:00:41]} 21. Rac1 {[%clk 0:00:21]}  Rae8 {[%clk 0:00:39]} 22. Qc4 {[%clk 0:00:21]}  Bxf3+ {[%clk 0:00:36]} 23. Kg1 {[%clk 0:00:13]}  Qxc4 {[%clk 0:00:32]} 24. Rxc4 {[%clk 0:00:13]}  Nxe2+ {[%clk 0:00:29]} 25. Kh2 {[%clk 0:00:13]}  Nd4 {[%clk 0:00:26]} 26. Rxe6 {[%clk 0:00:13]}  fxe6 {[%clk 0:00:20]} 27. Bxd4 {[%clk 0:00:13]}  cxd4 {[%clk 0:00:21]} 28. Rxd4 {[%clk 0:00:14]}  Bd5 {[%clk 0:00:21]} 29. Ra4 {[%clk 0:00:12]}  Re7 {[%clk 0:00:21]} 30. b4 {[%clk 0:00:11]}  f5 {[%clk 0:00:20]} 31. Kg1 {[%clk 0:00:11]}  e5 {[%clk 0:00:20]} 32. Ra3 {[%clk 0:00:11]}  Kf7 {[%clk 0:00:20]} 33. Kf1 {[%clk 0:00:10]}  Ke6 {[%clk 0:00:20]} 34. Ke2 {[%clk 0:00:10]}  Kd6 {[%clk 0:00:19]} 35. Ke3 {[%clk 0:00:10]}  Rc7 {[%clk 0:00:19]} 36. d3 {[%clk 0:00:09]}  Kc6 {[%clk 0:00:20]} 37. Rc3+ {[%clk 0:00:08]}  Kb7 {[%clk 0:00:20]} 38. Rxc7+ {[%clk 0:00:07]}  Kxc7 {[%clk 0:00:20]} 39. a4 {[%clk 0:00:06]}  Kd6 {[%clk 0:00:20]} 40. f4 {[%clk 0:00:06]}  a5 {[%clk 0:00:20]} 41. bxa5 {[%clk 0:00:06]}  bxa5 {[%clk 0:00:20]} 42. d4 {[%clk 0:00:06]}  e4 {[%clk 0:00:20]} 0-1


[Site "https://www.chess.com"]

[Event "Titled Tuesday Blitz May 17 Late 2022"]
[White "Andreikin, Dmitry"]
[Black "Hansen, Eric"]
[WhiteFideId "4158814"]
[BlackFideId "2606771"]
[WhiteElo "2736"]
[BlackElo "2568"]
[Result "1-0"]
[Round "09"]
[TimeControl "180+1"]
[Date "2022.05.17"]
[WhiteClock "0:00:13"]
[BlackClock "0:00:01"]

1. d4 {[%clk 0:03:00]}  Nf6 {[%clk 0:02:52]} 2. c4 {[%clk 0:03:00]}  e6 {[%clk 0:02:50]} 3. Nf3 {[%clk 0:03:00]}  d5 {[%clk 0:02:49]} 4. g3 {[%clk 0:03:01]}  Bb4+ {[%clk 0:02:49]} 5. Bd2 {[%clk 0:03:00]}  Be7 {[%clk 0:02:50]} 6. Bg2 {[%clk 0:03:01]}  O-O {[%clk 0:02:50]} 7. O-O {[%clk 0:03:01]}  c6 {[%clk 0:02:50]} 8. Nc3 {[%clk 0:03:02]}  Nbd7 {[%clk 0:02:48]} 9. a4 {[%clk 0:03:02]}  b6 {[%clk 0:02:45]} 10. Bf4 {[%clk 0:02:55]}  Ba6 {[%clk 0:02:43]} 11. cxd5 {[%clk 0:02:54]}  Nxd5 {[%clk 0:02:39]} 12. Ne5 {[%clk 0:02:52]}  Nxe5 {[%clk 0:02:38]} 13. Bxe5 {[%clk 0:02:45]}  Nxc3 {[%clk 0:02:30]} 14. bxc3 {[%clk 0:02:45]}  Rc8 {[%clk 0:02:29]} 15. Qd2 {[%clk 0:02:06]}  c5 {[%clk 0:02:28]} 16. Rfd1 {[%clk 0:02:05]}  cxd4 {[%clk 0:02:25]} 17. cxd4 {[%clk 0:02:06]}  Qd7 {[%clk 0:02:16]} 18. a5 {[%clk 0:02:03]}  Bc4 {[%clk 0:02:10]} 19. axb6 {[%clk 0:02:01]}  axb6 {[%clk 0:02:10]} 20. Qb2 {[%clk 0:01:58]}  f6 {[%clk 0:02:00]} 21. Bf4 {[%clk 0:01:56]}  b5 {[%clk 0:02:00]} 22. e4 {[%clk 0:01:50]}  Rfd8 {[%clk 0:01:59]} 23. Bh3 {[%clk 0:01:49]}  Qb7 {[%clk 0:01:17]} 24. d5 {[%clk 0:01:49]}  f5 {[%clk 0:01:00]} 25. Qe5 {[%clk 0:01:35]}  exd5 {[%clk 0:00:51]} 26. Bxf5 {[%clk 0:01:29]}  Bf6 {[%clk 0:00:48]} 27. Qe6+ {[%clk 0:01:24]}  Kh8 {[%clk 0:00:43]} 28. e5 {[%clk 0:01:19]}  d4 {[%clk 0:00:32]} 29. Qa6 {[%clk 0:01:19]}  Qxa6 {[%clk 0:00:32]} 30. Rxa6 {[%clk 0:01:20]}  Rc5 {[%clk 0:00:26]} 31. Re1 {[%clk 0:00:37]}  Be7 {[%clk 0:00:19]} 32. Ra7 {[%clk 0:00:36]}  Bf8 {[%clk 0:00:19]} 33. Bd7 {[%clk 0:00:28]}  d3 {[%clk 0:00:09]} 34. e6 {[%clk 0:00:23]}  Rd5 {[%clk 0:00:08]} 35. e7 {[%clk 0:00:13]}  Bxe7 {[%clk 0:00:05]} 36. Rxe7 {[%clk 0:00:14]}  d2 {[%clk 0:00:04]} 37. Bg4 {[%clk 0:00:14]}  d1=Q+ {[%clk 0:00:04]} 38. Bxd1 {[%clk 0:00:15]}  Rxd1+ {[%clk 0:00:05]} 39. Kg2 {[%clk 0:00:15]}  Bd5+ {[%clk 0:00:03]} 40. Kh3 {[%clk 0:00:15]}  Bg8 {[%clk 0:00:01]} 41. Be5 {[%clk 0:00:14]}  R1d7 {[%clk 0:00:01]} 42. Bxg7# {[%clk 0:00:13]} 1-0


[Site "https://www.chess.com"]

[Event "Titled Tuesday Blitz May 17 Late 2022"]
[White "Babazada, Khazar"]
[Black "Ivanisevic, Ivan"]
[WhiteFideId "13413554"]
[BlackFideId "912417"]
[WhiteElo "2406"]
[BlackElo "2495"]
[Result "1-0"]
[Round "09"]
[TimeControl "180+1"]
[Date "2022.05.17"]
[WhiteClock "0:00:11"]
[BlackClock "0:00:05"]

1. Nf3 {[%clk 0:02:53]}  c5 {[%clk 0:02:57]} 2. g3 {[%clk 0:02:54]}  Nc6 {[%clk 0:02:56]} 3. Bg2 {[%clk 0:02:55]}  g6 {[%clk 0:02:57]} 4. d3 {[%clk 0:02:55]}  Bg7 {[%clk 0:02:57]} 5. O-O {[%clk 0:02:55]}  d6 {[%clk 0:02:55]} 6. Nbd2 {[%clk 0:02:55]}  h5 {[%clk 0:02:47]} 7. e4 {[%clk 0:02:56]}  Bd7 {[%clk 0:02:41]} 8. Re1 {[%clk 0:02:51]}  Qc8 {[%clk 0:02:40]} 9. h4 {[%clk 0:02:51]}  Nh6 {[%clk 0:02:38]} 10. Nc4 {[%clk 0:02:51]}  Ng4 {[%clk 0:02:37]} 11. c3 {[%clk 0:02:51]}  O-O {[%clk 0:02:34]} 12. a4 {[%clk 0:02:47]}  Rb8 {[%clk 0:02:27]} 13. Bg5 {[%clk 0:02:41]}  b6 {[%clk 0:02:24]} 14. Rc1 {[%clk 0:02:39]}  Qa6 {[%clk 0:02:14]} 15. Na3 {[%clk 0:02:13]}  Rbe8 {[%clk 0:01:32]} 16. Nb5 {[%clk 0:02:08]}  Qc8 {[%clk 0:01:27]} 17. d4 {[%clk 0:02:07]}  f5 {[%clk 0:01:18]} 18. e5 {[%clk 0:02:02]}  dxe5 {[%clk 0:01:10]} 19. dxe5 {[%clk 0:02:03]}  Be6 {[%clk 0:00:59]} 20. Bf4 {[%clk 0:01:56]}  Rd8 {[%clk 0:00:59]} 21. Qe2 {[%clk 0:01:54]}  Bd5 {[%clk 0:00:57]} 22. e6 {[%clk 0:01:47]}  Bxf3 {[%clk 0:00:44]} 23. Bxf3 {[%clk 0:01:45]}  Nce5 {[%clk 0:00:45]} 24. Nxa7 {[%clk 0:01:36]}  Nxf3+ {[%clk 0:00:35]} 25. Qxf3 {[%clk 0:01:36]}  Qa6 {[%clk 0:00:35]} 26. Nc6 {[%clk 0:01:33]}  Rde8 {[%clk 0:00:32]} 27. b3 {[%clk 0:01:28]}  Kh7 {[%clk 0:00:32]} 28. c4 {[%clk 0:01:26]}  Bf6 {[%clk 0:00:30]} 29. Rcd1 {[%clk 0:01:25]}  Qa8 {[%clk 0:00:25]} 30. Rd7 {[%clk 0:01:26]}  Rc8 {[%clk 0:00:23]} 31. Ne5 {[%clk 0:01:21]}  Qxf3 {[%clk 0:00:10]} 32. Nxf3 {[%clk 0:01:22]}  Rcd8 {[%clk 0:00:10]} 33. Bc7 {[%clk 0:01:17]}  Rc8 {[%clk 0:00:09]} 34. Bxb6 {[%clk 0:01:17]}  Rc6 {[%clk 0:00:08]} 35. a5 {[%clk 0:01:16]}  Rfc8 {[%clk 0:00:08]} 36. Re2 {[%clk 0:01:05]}  f4 {[%clk 0:00:08]} 37. gxf4 {[%clk 0:01:01]}  Kg7 {[%clk 0:00:09]} 38. Ng5 {[%clk 0:01:02]}  Nh6 {[%clk 0:00:08]} 39. Ne4 {[%clk 0:00:59]}  Nf5 {[%clk 0:00:09]} 40. Nxf6 {[%clk 0:00:25]}  Kxf6 {[%clk 0:00:10]} 41. Ra2 {[%clk 0:00:19]}  Nd4 {[%clk 0:00:08]} 42. Rxd4 {[%clk 0:00:15]}  cxd4 {[%clk 0:00:09]} 43. Bxd4+ {[%clk 0:00:16]}  Kxe6 {[%clk 0:00:09]} 44. a6 {[%clk 0:00:17]}  Ra8 {[%clk 0:00:09]} 45. a7 {[%clk 0:00:16]}  Kf5 {[%clk 0:00:09]} 46. Be3 {[%clk 0:00:15]}  Ke4 {[%clk 0:00:09]} 47. Kf1 {[%clk 0:00:14]}  Kf3 {[%clk 0:00:09]} 48. Rc2 {[%clk 0:00:13]}  Rd6 {[%clk 0:00:09]} 49. Rc1 {[%clk 0:00:12]}  Ra6 {[%clk 0:00:08]} 50. b4 {[%clk 0:00:11]}  R6xa7 {[%clk 0:00:04]} 51. Bxa7 {[%clk 0:00:11]}  Rxa7 {[%clk 0:00:05]} 52. c5 {[%clk 0:00:11]} 1-0


[Site "https://www.chess.com"]

[Event "Titled Tuesday Blitz May 17 Late 2022"]
[White "Chen, Justin"]
[Black "Schekachikhin, Maksim"]
[WhiteFideId "2098199"]
[BlackFideId "24177830"]
[WhiteElo "2492"]
[BlackElo "2239"]
[Result "1-0"]
[Round "09"]
[TimeControl "180+1"]
[Date "2022.05.17"]
[WhiteClock "0:00:03"]
[BlackClock "0:01:19"]

1. d4 {[%clk 0:02:55]}  Nf6 {[%clk 0:02:58]} 2. Bf4 {[%clk 0:02:54]}  b6 {[%clk 0:02:57]} 3. e3 {[%clk 0:02:51]}  Bb7 {[%clk 0:02:55]} 4. Nf3 {[%clk 0:02:46]}  g6 {[%clk 0:02:49]} 5. h3 {[%clk 0:02:45]}  Bg7 {[%clk 0:02:49]} 6. Be2 {[%clk 0:02:45]}  d6 {[%clk 0:02:48]} 7. O-O {[%clk 0:02:45]}  O-O {[%clk 0:02:42]} 8. a4 {[%clk 0:02:42]}  a6 {[%clk 0:02:36]} 9. c4 {[%clk 0:02:43]}  Nbd7 {[%clk 0:02:35]} 10. a5 {[%clk 0:02:42]}  Re8 {[%clk 0:02:32]} 11. Bh2 {[%clk 0:02:40]}  Ne4 {[%clk 0:02:23]} 12. Nbd2 {[%clk 0:02:35]}  Nxd2 {[%clk 0:02:13]} 13. Qxd2 {[%clk 0:02:36]}  e5 {[%clk 0:02:11]} 14. dxe5 {[%clk 0:01:56]}  dxe5 {[%clk 0:02:04]} 15. Rfd1 {[%clk 0:01:54]}  Nc5 {[%clk 0:01:58]} 16. Qxd8 {[%clk 0:01:46]}  Raxd8 {[%clk 0:01:57]} 17. b4 {[%clk 0:00:58]}  Nd7 {[%clk 0:01:44]} 18. b5 {[%clk 0:00:39]}  axb5 {[%clk 0:01:40]} 19. a6 {[%clk 0:00:39]}  Ba8 {[%clk 0:01:40]} 20. cxb5 {[%clk 0:00:37]}  Bxf3 {[%clk 0:01:38]} 21. gxf3 {[%clk 0:00:14]}  Nc5 {[%clk 0:01:31]} 22. Rxd8 {[%clk 0:00:12]}  Rxd8 {[%clk 0:01:29]} 23. Rd1 {[%clk 0:00:13]}  Ra8 {[%clk 0:01:28]} 24. f4 {[%clk 0:00:03]}  e4 {[%clk 0:01:27]} 25. f5 {[%clk 0:00:03]}  c6 {[%clk 0:01:24]} 26. bxc6 {[%clk 0:00:02]}  Nxa6 {[%clk 0:01:24]} 27. c7 {[%clk 0:00:01]}  Nxc7 {[%clk 0:01:24]} 28. Bxc7 {[%clk 0:00:02]}  gxf5 {[%clk 0:01:24]} 29. Bxb6 {[%clk 0:00:02]}  Be5 {[%clk 0:01:24]} 30. Bd4 {[%clk 0:00:02]}  Bc7 {[%clk 0:01:21]} 31. Rc1 {[%clk 0:00:02]}  Bd6 {[%clk 0:01:22]} 32. Rc6 {[%clk 0:00:01]}  Rd8 {[%clk 0:01:22]} 33. Kg2 {[%clk 0:00:02]}  Kf8 {[%clk 0:01:22]} 34. Bc4 {[%clk 0:00:02]}  Ke8 {[%clk 0:01:22]} 35. Ra6 {[%clk 0:00:02]}  Be7 {[%clk 0:01:21]} 36. Bb5+ {[%clk 0:00:02]}  Kf8 {[%clk 0:01:21]} 37. Bc6 {[%clk 0:00:03]}  f4 {[%clk 0:01:21]} 38. Ra8 {[%clk 0:00:03]}  fxe3 {[%clk 0:01:21]} 39. Rxd8+ {[%clk 0:00:02]}  Bxd8 {[%clk 0:01:22]} 40. fxe3 {[%clk 0:00:01]}  f5 {[%clk 0:01:21]} 41. Bd7 {[%clk 0:00:02]}  f4 {[%clk 0:01:21]} 42. exf4 {[%clk 0:00:03]}  Bc7 {[%clk 0:01:22]} 43. Be5 {[%clk 0:00:02]}  Bb6 {[%clk 0:01:22]} 44. Bf5 {[%clk 0:00:02]}  e3 {[%clk 0:01:22]} 45. Kf3 {[%clk 0:00:01]}  h6 {[%clk 0:01:21]} 46. Bc3 {[%clk 0:00:01]}  Kf7 {[%clk 0:01:21]} 47. Be1 {[%clk 0:00:01]}  Kf6 {[%clk 0:01:21]} 48. Bd3 {[%clk 0:00:02]}  Ke6 {[%clk 0:01:20]} 49. Bc3 {[%clk 0:00:02]}  Kd5 {[%clk 0:01:19]} 50. Bb2 {[%clk 0:00:03]}  Bc5 {[%clk 0:01:19]} 51. Bc1 {[%clk 0:00:03]}  Kd4 {[%clk 0:01:19]} 52. Bxe3+ {[%clk 0:00:03]} 1-0


[Site "https://www.chess.com"]

[Event "Titled Tuesday Blitz May 17 Late 2022"]
[White "Donchenko, Alexander"]
[Black "Dubov, Daniil"]
[WhiteFideId "24603295"]
[BlackFideId "24126055"]
[WhiteElo "2572"]
[BlackElo "2791"]
[Result "1/2-1/2"]
[Round "09"]
[TimeControl "180+1"]
[Date "2022.05.17"]
[WhiteClock "0:00:22"]
[BlackClock "0:00:19"]

1. Nf3 {[%clk 0:03:00]}  g6 {[%clk 0:02:57]} 2. g3 {[%clk 0:03:00]}  b6 {[%clk 0:02:54]} 3. Bg2 {[%clk 0:02:59]}  Bb7 {[%clk 0:02:55]} 4. O-O {[%clk 0:02:58]}  Bg7 {[%clk 0:02:55]} 5. d4 {[%clk 0:02:59]}  Nf6 {[%clk 0:02:54]} 6. c4 {[%clk 0:02:58]}  O-O {[%clk 0:02:55]} 7. d5 {[%clk 0:02:58]}  Na6 {[%clk 0:02:54]} 8. Nc3 {[%clk 0:02:58]}  Nc5 {[%clk 0:02:54]} 9. Nd4 {[%clk 0:02:58]}  e5 {[%clk 0:02:53]} 10. Nb3 {[%clk 0:02:59]}  d6 {[%clk 0:02:53]} 11. Nxc5 {[%clk 0:02:57]}  bxc5 {[%clk 0:02:54]} 12. e4 {[%clk 0:02:53]}  Bc8 {[%clk 0:02:53]} 13. Rb1 {[%clk 0:02:50]}  a5 {[%clk 0:02:48]} 14. a3 {[%clk 0:02:49]}  Ng4 {[%clk 0:02:47]} 15. h3 {[%clk 0:02:48]}  Nh6 {[%clk 0:02:47]} 16. b4 {[%clk 0:02:47]}  axb4 {[%clk 0:02:46]} 17. axb4 {[%clk 0:02:48]}  cxb4 {[%clk 0:02:46]} 18. Rxb4 {[%clk 0:02:49]}  f5 {[%clk 0:02:46]} 19. c5 {[%clk 0:02:47]}  f4 {[%clk 0:02:43]} 20. g4 {[%clk 0:02:35]}  Nf7 {[%clk 0:02:35]} 21. c6 {[%clk 0:02:29]}  h5 {[%clk 0:02:27]} 22. f3 {[%clk 0:02:21]}  Bf6 {[%clk 0:02:24]} 23. Bd2 {[%clk 0:02:13]}  Bh4 {[%clk 0:02:23]} 24. Ne2 {[%clk 0:02:09]}  Ng5 {[%clk 0:02:16]} 25. Be1 {[%clk 0:02:07]}  Bxe1 {[%clk 0:02:10]} 26. Qxe1 {[%clk 0:02:06]}  hxg4 {[%clk 0:02:09]} 27. hxg4 {[%clk 0:02:05]}  Kg7 {[%clk 0:02:02]} 28. Qb1 {[%clk 0:01:45]}  Rh8 {[%clk 0:01:55]} 29. Rb8 {[%clk 0:01:42]}  Rxb8 {[%clk 0:01:48]} 30. Qxb8 {[%clk 0:01:43]}  Ba6 {[%clk 0:01:44]} 31. Qxd8 {[%clk 0:01:37]}  Rxd8 {[%clk 0:01:45]} 32. Rf2 {[%clk 0:01:21]}  Rb8 {[%clk 0:01:36]} 33. Bf1 {[%clk 0:01:19]}  Rb1 {[%clk 0:01:31]} 34. Kg2 {[%clk 0:01:19]}  Ra1 {[%clk 0:01:20]} 35. Ng1 {[%clk 0:01:15]}  Bc8 {[%clk 0:00:58]} 36. Nh3 {[%clk 0:01:11]}  Kf6 {[%clk 0:00:47]} 37. Nxg5 {[%clk 0:01:02]}  Kxg5 {[%clk 0:00:48]} 38. Rb2 {[%clk 0:01:01]}  Ra8 {[%clk 0:00:38]} 39. Kg1 {[%clk 0:00:58]}  Kf6 {[%clk 0:00:27]} 40. Kf2 {[%clk 0:00:56]}  Kg5 {[%clk 0:00:27]} 41. Kg1 {[%clk 0:00:51]}  Kf6 {[%clk 0:00:23]} 42. Bh3 {[%clk 0:00:26]}  Kg5 {[%clk 0:00:19]} 43. Bf1 {[%clk 0:00:22]} 1/2-1/2


[Site "https://www.chess.com"]

[Event "Titled Tuesday Blitz May 17 Late 2022"]
[White "Gabrielian, Artur"]
[Black "Bluebaum, Matthias"]
[WhiteFideId "4131002"]
[BlackFideId "24651516"]
[WhiteElo "2440"]
[BlackElo "2556"]
[Result "0-1"]
[Round "09"]
[TimeControl "180+1"]
[Date "2022.05.17"]
[WhiteClock "0:00:07"]
[BlackClock "0:00:10"]

1. e4 {[%clk 0:03:00]}  c6 {[%clk 0:03:00]} 2. d4 {[%clk 0:03:00]}  d5 {[%clk 0:03:01]} 3. e5 {[%clk 0:03:01]}  Bf5 {[%clk 0:03:01]} 4. h4 {[%clk 0:03:01]}  h5 {[%clk 0:03:01]} 5. Bd3 {[%clk 0:03:01]}  Bxd3 {[%clk 0:03:01]} 6. Qxd3 {[%clk 0:03:02]}  Qa5+ {[%clk 0:03:02]} 7. Nd2 {[%clk 0:03:00]}  e6 {[%clk 0:03:02]} 8. Nf3 {[%clk 0:03:01]}  Nh6 {[%clk 0:03:02]} 9. O-O {[%clk 0:03:00]}  Nf5 {[%clk 0:03:03]} 10. a4 {[%clk 0:02:59]}  Be7 {[%clk 0:02:55]} 11. Nb3 {[%clk 0:02:59]}  Qa6 {[%clk 0:02:53]} 12. Qd1 {[%clk 0:02:59]}  Nd7 {[%clk 0:02:42]} 13. g3 {[%clk 0:02:58]}  c5 {[%clk 0:02:41]} 14. dxc5 {[%clk 0:02:50]}  Nxc5 {[%clk 0:02:39]} 15. Nbd4 {[%clk 0:02:50]}  Nxd4 {[%clk 0:02:36]} 16. Nxd4 {[%clk 0:02:50]}  Ne4 {[%clk 0:02:35]} 17. Be3 {[%clk 0:02:47]}  Qc4 {[%clk 0:02:34]} 18. c3 {[%clk 0:02:34]}  a6 {[%clk 0:02:33]} 19. a5 {[%clk 0:02:33]}  Rc8 {[%clk 0:02:27]} 20. Kg2 {[%clk 0:02:00]}  Qc7 {[%clk 0:02:25]} 21. Nf3 {[%clk 0:01:58]}  Bc5 {[%clk 0:02:21]} 22. Bd4 {[%clk 0:01:55]}  Bxd4 {[%clk 0:02:19]} 23. cxd4 {[%clk 0:01:52]}  O-O {[%clk 0:02:14]} 24. Ng5 {[%clk 0:01:47]}  Nxg5 {[%clk 0:02:14]} 25. hxg5 {[%clk 0:01:48]}  g6 {[%clk 0:02:14]} 26. g4 {[%clk 0:01:48]}  hxg4 {[%clk 0:01:33]} 27. Qxg4 {[%clk 0:01:43]}  Qc2 {[%clk 0:01:33]} 28. Ra3 {[%clk 0:01:32]}  Kg7 {[%clk 0:01:25]} 29. Rf3 {[%clk 0:01:11]}  Rh8 {[%clk 0:01:22]} 30. Qf4 {[%clk 0:00:35]}  Qf5 {[%clk 0:01:21]} 31. Qxf5 {[%clk 0:00:35]}  gxf5 {[%clk 0:01:22]} 32. Rc3 {[%clk 0:00:35]}  Rxc3 {[%clk 0:00:33]} 33. bxc3 {[%clk 0:00:35]}  Rc8 {[%clk 0:00:34]} 34. Rc1 {[%clk 0:00:35]}  Kg6 {[%clk 0:00:21]} 35. f4 {[%clk 0:00:35]}  Rc6 {[%clk 0:00:22]} 36. Kf3 {[%clk 0:00:29]}  b6 {[%clk 0:00:22]} 37. axb6 {[%clk 0:00:28]}  Rxb6 {[%clk 0:00:23]} 38. Ra1 {[%clk 0:00:20]}  Rb3 {[%clk 0:00:19]} 39. Rxa6 {[%clk 0:00:20]}  Rxc3+ {[%clk 0:00:19]} 40. Ke2 {[%clk 0:00:21]}  Kh5 {[%clk 0:00:20]} 41. Ra7 {[%clk 0:00:21]}  Kg4 {[%clk 0:00:20]} 42. Rxf7 {[%clk 0:00:20]}  Kxf4 {[%clk 0:00:20]} 43. g6 {[%clk 0:00:20]}  Rg3 {[%clk 0:00:14]} 44. Rf6 {[%clk 0:00:20]}  Ke4 {[%clk 0:00:14]} 45. Rxe6 {[%clk 0:00:20]}  Kxd4 {[%clk 0:00:15]} 46. Kf2 {[%clk 0:00:19]}  f4 {[%clk 0:00:15]} 47. Re8 {[%clk 0:00:14]}  Rxg6 {[%clk 0:00:15]} 48. e6 {[%clk 0:00:15]}  Ke4 {[%clk 0:00:12]} 49. e7 {[%clk 0:00:13]}  Rg7 {[%clk 0:00:08]} 50. Ke2 {[%clk 0:00:12]}  d4 {[%clk 0:00:08]} 51. Kd2 {[%clk 0:00:11]}  f3 {[%clk 0:00:09]} 52. Ke1 {[%clk 0:00:08]}  Ke3 {[%clk 0:00:09]} 53. Kf1 {[%clk 0:00:07]}  d3 {[%clk 0:00:10]} 0-1


[Site "https://www.chess.com"]

[Event "Titled Tuesday Blitz May 17 Late 2022"]
[White "Grischuk, Alexander"]
[Black "Martinez Alcantara, Jose Eduardo"]
[WhiteFideId "4126025"]
[BlackFideId "3805662"]
[WhiteElo "2762"]
[BlackElo "2690"]
[Result "1-0"]
[Round "09"]
[TimeControl "180+1"]
[Date "2022.05.17"]
[WhiteClock "0:00:22"]
[BlackClock "0:00:08"]

1. d4 {[%clk 0:03:00]}  Nf6 {[%clk 0:03:00]} 2. c4 {[%clk 0:03:00]}  e6 {[%clk 0:03:00]} 3. Nf3 {[%clk 0:03:00]}  Bb4+ {[%clk 0:03:01]} 4. Nbd2 {[%clk 0:02:58]}  b6 {[%clk 0:03:01]} 5. a3 {[%clk 0:02:53]}  Bxd2+ {[%clk 0:02:58]} 6. Qxd2 {[%clk 0:02:54]}  Bb7 {[%clk 0:02:56]} 7. e3 {[%clk 0:02:54]}  d5 {[%clk 0:02:54]} 8. b3 {[%clk 0:02:53]}  Nbd7 {[%clk 0:02:52]} 9. Bb2 {[%clk 0:02:51]}  O-O {[%clk 0:02:52]} 10. Be2 {[%clk 0:02:51]}  dxc4 {[%clk 0:02:51]} 11. bxc4 {[%clk 0:02:51]}  c5 {[%clk 0:02:51]} 12. O-O {[%clk 0:02:51]}  cxd4 {[%clk 0:02:47]} 13. exd4 {[%clk 0:02:51]}  Qc7 {[%clk 0:02:45]} 14. Rfc1 {[%clk 0:02:47]}  Rac8 {[%clk 0:02:33]} 15. h3 {[%clk 0:02:45]}  Rfd8 {[%clk 0:02:33]} 16. Qe3 {[%clk 0:02:42]}  Nf8 {[%clk 0:02:31]} 17. a4 {[%clk 0:02:36]}  Ng6 {[%clk 0:02:29]} 18. Bf1 {[%clk 0:02:34]}  Re8 {[%clk 0:02:17]} 19. a5 {[%clk 0:02:31]}  h6 {[%clk 0:02:06]} 20. axb6 {[%clk 0:02:27]}  axb6 {[%clk 0:02:07]} 21. Ra3 {[%clk 0:02:11]}  Qb8 {[%clk 0:02:04]} 22. Rb3 {[%clk 0:02:10]}  Qc7 {[%clk 0:02:00]} 23. Ba1 {[%clk 0:01:57]}  Rb8 {[%clk 0:01:32]} 24. Rcb1 {[%clk 0:01:22]}  Be4 {[%clk 0:01:29]} 25. Re1 {[%clk 0:01:21]}  Ra8 {[%clk 0:01:20]} 26. Qc3 {[%clk 0:01:16]}  Ra4 {[%clk 0:01:09]} 27. Ne5 {[%clk 0:01:12]}  Ne7 {[%clk 0:00:53]} 28. Ng4 {[%clk 0:01:07]}  Nxg4 {[%clk 0:00:52]} 29. hxg4 {[%clk 0:01:08]}  Bg6 {[%clk 0:00:37]} 30. d5 {[%clk 0:01:09]}  f6 {[%clk 0:00:37]} 31. Rxe6 {[%clk 0:01:09]}  Nc8 {[%clk 0:00:36]} 32. Rxe8+ {[%clk 0:00:43]}  Bxe8 {[%clk 0:00:37]} 33. Ra3 {[%clk 0:00:43]}  Nd6 {[%clk 0:00:31]} 34. Rxa4 {[%clk 0:00:42]}  Bxa4 {[%clk 0:00:32]} 35. Qb4 {[%clk 0:00:41]}  Bd7 {[%clk 0:00:31]} 36. Bd4 {[%clk 0:00:41]}  Nc8 {[%clk 0:00:32]} 37. c5 {[%clk 0:00:35]}  bxc5 {[%clk 0:00:30]} 38. Bxc5 {[%clk 0:00:36]}  Bxg4 {[%clk 0:00:20]} 39. d6 {[%clk 0:00:34]}  Qd7 {[%clk 0:00:10]} 40. Bb5 {[%clk 0:00:29]}  Qe6 {[%clk 0:00:10]} 41. d7 {[%clk 0:00:27]}  Qd5 {[%clk 0:00:09]} 42. dxc8=Q+ {[%clk 0:00:21]}  Bxc8 {[%clk 0:00:08]} 43. Bc4 {[%clk 0:00:22]} 1-0


[Site "https://www.chess.com"]